bitfinex/quotes_ETHUSD_20250801
["timestamp","ask_amount","ask_price","bid_price","bid_amount"]
[1754051402721,0.55,3644.0,3640.8,0.93436649]
[1754051402924,0.55,3644.0,3640.9,0.62125005]
[1754051403173,0.55,3644.0,3641.0,0.02746498]
[1754051403371,2.74438772,3643.8,3641.0,0.02746498]
[1754051403571,0.84969426,3644.0,3641.0,0.02746498]
[1754051403572,10.0,3642.7,3641.0,0.02746498]
[1754051403861,10.0,3642.7,3640.7,0.352634]
[1754051403862,3.0,3642.4,3640.7,0.352634]
[1754051404180,0.1,3640.3,3635.3,2.75078646]
[1754051404373,30.0,3641.3,3638.9,0.825096]
[1754051404678,0.01,3641.9,3634.4,0.9388]
[1754051404679,3.0,3637.5,3634.4,0.9388]
[1754051404824,2.74917834,3637.5,3634.0,0.4453]
[1754051405025,0.4616,3637.4,3635.4,0.4453]
[1754051405260,0.94148175,3639.6,3636.3,1.19307011]
[1754051405475,0.94148175,3639.6,3636.4,1.19307011]
[1754051405665,0.1,3641.5,3635.3,0.1]
[1754051405666,2.74678406,3640.7,3639.5,0.1]
[1754051405871,0.1376,3639.6,3639.1,0.1]
[1754051406166,2.74604546,3641.7,3640.1,0.1]
[1754051406323,2.74639344,3641.2,3639.3,0.25421398]
[1754051406526,0.1376,3639.3,3638.8,0.1]
[1754051406763,3.0,3640.0,3637.7,0.1376]
[1754051406963,2.74700188,3640.4,3638.6,0.1]
[1754051407177,9.12579393,3641.8,3637.3,0.02749292]
[1754051407382,0.1376,3639.6,3639.1,0.2376]
[1754051407550,0.436,3639.5,3637.7,0.4453]
[1754051407751,0.436,3639.5,3638.0,0.1]
[1754051407960,0.436,3639.5,3637.0,0.4453]
[1754051407961,0.436,3639.5,3637.7,0.1]
[1754051408146,0.426,3639.5,3638.1,0.1]
[1754051408340,0.426,3639.5,3637.0,0.47279518]
[1754051408341,0.426,3639.5,3638.7,0.1]
[1754051408564,10.14363123,3640.1,3639.2,0.1]
[1754051408768,10.14363123,3640.1,3640.0,0.1]
[1754051408769,10.0,3640.1,3640.0,0.1]
[1754051408941,10.1376,3640.1,3640.0,0.1]
[1754051409137,10.0,3640.1,3640.0,0.1]
[1754051409343,10.0,3640.1,3640.0,1.1764]
[1754051409541,10.0,3641.4,3641.0,0.1]
[1754051409764,10.0,3641.4,3641.3,0.1]
[1754051410280,6.3798402,3642.4,3642.3,0.1]
[1754051410736,4.9298402,3642.4,3642.3,1.0288]
[1754051410893,4.9298402,3642.4,3642.3,1.1664]
[1754051411093,4.9298402,3642.4,3642.3,1.0288]
[1754051411294,7.85211102,3643.0,3642.8,0.09]
[1754051411529,0.9129,3644.6,3642.8,0.09]
[1754051411825,0.2518149,3644.5,3642.8,1.853444]
[1754051412249,0.2518149,3644.5,3642.8,1.88089541]
[1754051412427,7.85211102,3644.8,3642.8,1.88089541]
[1754051412795,1e-08,3642.9,3642.8,1.88089541]
[1754051412990,1e-08,3642.9,3642.8,1.853444]
[1754051413337,1e-08,3642.9,3642.8,0.824644]
[1754051413647,1e-08,3642.9,3642.8,0.914644]
[1754051413810,1e-08,3642.9,3642.3,0.002]
[1754051414007,1e-08,3642.9,3642.8,0.5516]
[1754051414532,0.45130001,3642.9,3642.3,0.002]
[1754051414835,0.45130001,3642.9,3642.7,0.09]
[1754051415143,0.9129,3642.8,3642.4,0.5516]
[1754051415327,0.55,3642.6,3642.3,0.002]
[1754051415643,10.0,3642.4,3642.3,0.002]
[1754051415939,10.0,3642.4,3642.3,0.092]
[1754051416136,1e-08,3642.9,3642.8,0.09]
[1754051416313,1e-08,3642.9,3642.8,0.11745141]
[1754051416496,1e-08,3642.9,3642.8,1.0288]
[1754051417443,1e-08,3642.9,3642.2,2.74558704]
[1754051417738,1e-08,3642.9,3640.8,0.1]
[1754051418109,1e-08,3642.9,3642.3,5.49097414]
[1754051418309,1e-08,3642.9,3642.3,2.7455104]
[1754051418523,1e-08,3642.9,3642.5,2.74536719]
[1754051419027,1e-08,3642.9,3642.6,0.02745291]
[1754051419199,1e-08,3642.9,3641.6,9.34297517]
[1754051419402,1e-08,3642.9,3641.8,0.4787]
[1754051419597,1e-08,3642.9,3642.2,0.4328]
[1754051419911,1e-08,3642.9,3642.4,2.74544256]
[1754051420109,0.01,3643.9,3642.5,0.02745367]
[1754051420308,0.01,3643.9,3642.8,3.0]
[1754051420710,0.01,3643.9,3642.9,0.93895065]
[1754051420935,0.01,3643.9,3642.9,0.9115]
[1754051421109,0.01,3643.9,3643.8,0.1376]
[1754051421313,0.01,3643.9,3642.2,0.4328]
[1754051421838,0.4782,3643.8,3642.2,0.4328]
[1754051422035,0.4712,3643.7,3641.7,0.4328]
[1754051422215,0.4712,3643.7,3641.8,0.02745894]
[1754051422405,0.4782,3643.8,3641.9,0.4328]
[1754051422599,0.01,3643.9,3642.0,0.50615744]
[1754051422828,0.01,3643.9,3642.2,3.0]
[1754051423139,0.01,3643.9,3643.0,2.74498223]
[1754051423300,6.8359375,3644.8,3643.1,0.02744915]
[1754051423502,0.4792,3645.3,3643.2,0.9115]
[1754051423729,0.4792,3645.3,3643.3,0.02744764]
[1754051423906,0.4792,3645.3,3643.4,0.4328]
[1754051424112,10.4722,3645.7,3643.5,0.02744613]
[1754051424308,10.4722,3645.7,3643.4,0.4328]
[1754051424536,10.4722,3645.7,3643.5,0.4787]
[1754051424737,0.001,3645.7,3643.6,0.824204]
[1754051424924,0.001,3645.7,3643.7,0.93894463]
[1754051425314,7.60893408,3646.1,3644.0,3.0]
[1754051425503,0.01,3646.9,3644.3,3.0]
[1754051425703,0.01,3646.9,3644.3,5.48794307]
[1754051425908,0.01,3646.9,3644.8,3.0]
[1754051426145,0.01,3646.9,3645.6,3.0]
[1754051426314,0.01,3646.9,3645.8,3.0]
[1754051426515,0.01,3646.9,3645.9,0.02742806]
[1754051426836,0.001,3647.8,3646.4,3.0]
[1754051427038,0.001,3648.2,3646.6,3.0]
[1754051427247,0.001,3648.2,3647.4,3.0]
[1754051427537,0.001,3648.2,3647.5,0.02741603]
[1754051427738,0.011,3648.9,3647.5,0.02741603]
[1754051428041,5.434,3651.9,3647.5,0.02741603]
[1754051428042,2.419425,3651.2,3650.3,2.73946326]
[1754051428206,0.011,3651.9,3650.4,5.92309425]
[1754051428538,0.011,3651.9,3650.4,0.9115]
[1754051428705,0.011,3651.9,3650.5,0.0273935]
[1754051428904,0.011,3651.9,3650.6,0.4328]
[1754051429240,0.011,3651.9,3650.7,0.506092]
[1754051429487,0.01,3652.9,3650.9,3.0]
[1754051429674,0.056,3655.4,3653.0,2.73743052]
[1754051429834,0.4712,3655.1,3653.1,3.02737401]
[1754051430032,0.4712,3655.1,3653.1,3.0]
[1754051430233,0.056,3655.4,3653.2,0.4328]
[1754051430442,0.5342,3655.4,3653.2,0.4328]
[1754051430838,0.5342,3655.4,3653.3,3.4787]
[1754051430839,0.056,3655.4,3653.3,3.4787]
[1754051431030,0.9494,3655.3,3653.3,0.4787]
[1754051431232,0.056,3655.4,3653.4,0.46017176]
[1754051431427,0.056,3655.4,3654.7,0.1368]
[1754051431767,0.01,3655.9,3654.8,0.02736127]
[1754051431972,0.01,3655.9,3654.7,0.1368]
[1754051432131,0.01,3655.9,3654.3,3.0]
[1754051432332,0.01,3655.9,3654.7,0.02736202]
[1754051432641,0.01,3655.9,3654.8,0.9115]
[1754051432843,0.01,3655.9,3655.0,3.0]
[1754051433069,0.001,3656.7,3655.2,3.0]
[1754051433366,0.001,3656.7,3654.0,0.1]
[1754051433367,0.001,3656.7,3655.0,0.9115]
[1754051433542,0.001,3656.7,3655.2,0.9115]
[1754051433741,0.001,3656.7,3655.4,3.0]
[1754051434068,0.001,3656.7,3655.5,0.02735603]
[1754051434285,0.001,3656.7,3655.6,3.9115]
[1754051434492,0.001,3656.7,3655.6,0.9115]
[1754051434653,0.001,3656.7,3654.8,2.73609484]
[1754051434836,0.001,3656.7,3655.7,0.9115]
[1754051435174,0.001,3656.7,3654.9,3.0]
[1754051435341,0.02,3656.9,3655.8,0.02735379]
[1754051435538,0.02,3656.9,3655.9,0.9115]
[1754051435790,0.02,3657.9,3656.1,2.73514896]
[1754051435948,0.001,3656.7,3656.2,5.76243093]
[1754051436150,0.02,3657.9,3656.4,3.0]
[1754051436463,0.02,3658.9,3657.4,0.55]
[1754051436769,0.02,3658.9,3657.4,3.28418275]
[1754051436955,0.02,3658.9,3657.8,0.55]
[1754051437132,0.02,3658.9,3658.0,0.55]
[1754051437334,0.4782,3660.8,3658.4,0.55]
[1754051437637,0.02,3660.9,3658.4,0.55]
[1754051437638,0.02,3660.9,3658.8,0.55]
[1754051437968,0.02,3660.9,3659.0,3.0]
[1754051438129,0.02,3660.9,3659.1,1.4615]
[1754051438333,0.4712,3660.8,3658.5,0.4787]
[1754051438572,0.4712,3660.8,3658.4,0.4328]
[1754051438738,0.02,3660.9,3658.7,3.55]
[1754051438943,0.02,3660.9,3659.1,0.55]
[1754051439262,0.076,3661.9,3660.0,3.0]
[1754051439569,0.076,3661.9,3660.4,0.55]
[1754051439769,0.02,3662.9,3661.5,3.55]
[1754051440086,0.02,3662.9,3659.2,6.575]
[1754051440291,0.9494,3662.8,3659.5,3.0]
[1754051440630,0.97685442,3662.7,3659.6,0.9115]
[1754051440734,0.55,3662.5,3658.7,6.7055]
[1754051440939,0.02745442,3662.4,3658.7,5.794]
[1754051441169,0.02745442,3662.4,3658.4,6.575]
[1754051441170,3.55,3662.0,3658.4,6.575]
[1754051441477,0.55,3661.8,3658.5,0.9115]
[1754051441648,0.55,3661.6,3658.6,0.9115]
[1754051441863,0.9494,3661.5,3659.1,0.02]
[1754051442058,0.9494,3661.5,3659.3,0.55]
[1754051442354,0.9494,3662.2,3661.4,0.1368]
[1754051442572,0.02,3662.9,3661.5,0.02731121]
[1754051442739,0.35032531,3663.4,3661.5,0.02731121]
[1754051442939,0.35032531,3663.4,3661.2,0.4328]
[1754051442940,0.4712,3663.5,3661.6,0.02731046]
[1754051443287,0.4712,3663.4,3660.6,0.9115]
[1754051443640,0.02745442,3663.3,3660.1,0.02]
[1754051443870,0.55,3663.1,3660.1,0.02]
[1754051444175,0.55,3662.9,3660.1,0.02]
[1754051444397,0.55,3662.7,3660.1,0.02]
[1754051444591,0.4712,3662.6,3660.2,0.02732091]
[1754051444745,0.55,3662.5,3660.2,0.02732091]
[1754051444939,0.55,3662.5,3660.1,0.04732165]
[1754051445140,0.9494,3662.6,3661.1,0.02]
[1754051445141,0.55,3662.3,3661.1,0.02]
[1754051445576,0.55,3662.1,3661.1,0.02]
[1754051445988,0.9494,3662.2,3661.1,0.02]
[1754051446548,0.02745442,3663.1,3661.1,0.02]
[1754051446549,0.9886,3662.1,3661.1,0.02]
[1754051446853,0.55,3661.9,3661.1,0.02]
[1754051447252,3.0,3663.2,3661.1,0.02]
[1754051447253,0.55,3661.7,3661.1,0.02]
[1754051447464,0.4709,3661.8,3661.1,0.02]
[1754051447669,0.14276421,3664.2,3661.1,0.02]
[1754051447670,0.5177,3662.5,3661.1,0.02]
[1754051447874,0.4709,3663.1,3661.1,0.57]
[1754051448077,0.4709,3663.1,3661.2,0.4565]
[1754051448304,0.4709,3663.1,3661.3,0.5773127]
[1754051448504,16.42008817,3667.5,3661.7,3.55]
[1754051448708,0.4709,3664.6,3662.0,0.55]
[1754051449078,0.4709,3664.6,3661.6,16.42008817]
[1754051449079,0.9886,3663.8,3662.1,6.16922547]
[1754051449315,1.01605442,3663.7,3662.2,3.0]
[1754051449517,0.55,3663.5,3662.1,6.16922547]
[1754051449678,0.9886,3663.4,3662.1,6.16922547]
[1754051449878,0.55,3663.2,3662.1,6.16922547]
[1754051450116,0.4709,3663.1,3662.1,6.16922547]
[1754051450317,0.55,3663.0,3662.1,6.16922547]
[1754051450499,0.55,3662.8,3662.1,6.16922547]
[1754051450701,0.02745442,3662.7,3662.1,6.16922547]
[1754051451009,0.55,3662.6,3662.1,6.16922547]
[1754051451181,0.55,3662.4,3661.1,0.02]
[1754051451377,0.55,3662.2,3661.1,0.02]
[1754051451581,0.02745442,3662.1,3661.1,0.02]
[1754051451803,3.0,3661.9,3661.1,0.02]
[1754051452042,0.5177,3662.0,3661.1,0.02]
[1754051452179,0.8977,3662.8,3661.1,0.02]
[1754051452491,0.5177,3662.8,3661.9,0.1368]
[1754051452679,0.8977,3663.5,3662.7,0.1368]
[1754051453080,0.8977,3663.4,3662.4,0.1368]
[1754051453292,0.8977,3663.4,3661.1,0.4765]
[1754051453293,0.1368,3663.1,3661.1,0.4765]
[1754051453489,0.1368,3663.1,3662.6,0.1368]
[1754051453490,0.5177,3663.0,3662.6,0.1368]
[1754051453720,0.8977,3662.9,3661.1,0.4765]
[1754051453915,0.8977,3662.9,3662.6,0.1368]
[1754051454116,3.38,3663.5,3661.3,0.5389]
[1754051454319,3.38,3663.5,3662.8,0.1368]
[1754051454320,0.5177,3663.5,3662.8,0.1368]
[1754051454507,0.1568,3663.9,3663.4,0.1368]
[1754051454692,0.02,3663.9,3663.4,0.1368]
[1754051454895,0.02,3663.9,3663.8,0.1368]
[1754051455093,0.4,3663.9,3662.2,0.4565]
[1754051455308,0.02,3663.9,3662.2,0.4565]
[1754051455681,0.02,3663.9,3662.3,0.02730524]
[1754051455885,0.02,3663.9,3663.8,0.1368]
[1754051456223,0.02,3663.9,3663.8,1.1322]
[1754051457021,0.02,3663.9,3663.8,1.34186087]
[1754051457225,0.02,3664.9,3664.1,3.55]
[1754051457394,0.16164303,3665.3,3664.8,0.1368]
[1754051457595,0.16164303,3665.3,3665.2,0.1368]
[1754051457797,0.16164303,3665.3,3665.2,1.1322]
[1754051458122,0.16164303,3665.3,3665.2,4.88685821]
[1754051458295,0.02,3667.9,3665.6,0.55]
[1754051458505,0.02,3667.9,3665.7,0.136]
[1754051458804,0.02,3667.9,3665.7,9.67354577]
[1754051459011,0.02,3667.9,3665.7,11.19166586]
[1754051459230,0.02,3667.9,3665.9,0.55]
[1754051459546,0.02,3667.9,3666.8,0.55]
[1754051459694,0.02,3667.9,3667.8,0.136]
[1754051459892,0.02,3667.9,3666.9,5.33695569]
[1754051460094,0.02,3667.9,3667.0,3.0]
[1754051460333,0.02,3667.9,3666.9,5.33695569]
[1754051460334,0.42,3667.8,3666.9,5.33695569]
[1754051460491,0.55,3667.8,3666.9,5.33695569]
[1754051460687,0.5377,3667.9,3666.9,5.33695569]
[1754051460886,0.02,3667.9,3666.9,5.33695569]
[1754051461230,0.5177,3667.8,3666.9,5.33695569]
[1754051461827,0.9377,3667.8,3666.9,5.33695569]
[1754051462102,0.02,3667.9,3666.9,5.33695569]
[1754051462426,0.02,3667.9,3667.0,3.02727024]
[1754051462736,0.02,3667.9,3666.9,5.33695569]
[1754051462890,0.02,3667.9,3667.0,3.9954]
[1754051463091,0.02,3667.9,3667.0,9.80867024]
[1754051463290,0.0328,3667.8,3667.2,0.55]
[1754051463513,0.0328,3667.8,3667.4,0.55]
[1754051463694,0.004,3668.1,3667.6,2.72657868]
[1754051463894,1.63929004,3670.4,3667.7,0.57726504]
[1754051464139,1.63929004,3670.4,3667.8,0.70629635]
[1754051464293,1.63929004,3670.4,3667.8,0.9954]
[1754051464634,0.5177,3670.0,3667.9,3.0]
[1754051464939,1.63929004,3670.4,3667.9,3.0]
[1754051464940,1.63929004,3670.4,3668.0,7.622298]
[1754051465143,0.5177,3670.0,3668.1,3.0]
[1754051465449,1.63929004,3670.4,3668.4,0.55]
[1754051465591,1.63929004,3670.4,3668.5,0.27718451]
[1754051465792,1.63929004,3670.4,3668.6,0.24992542]
[1754051466016,1.63929004,3670.4,3668.7,0.27718303]
[1754051466224,1.63929004,3670.4,3668.8,3.24992542]
[1754051466395,1.63929004,3670.4,3668.8,4.24532542]
[1754051466719,1.63929004,3670.4,3668.9,0.55]
[1754051466936,1.63929004,3670.4,3669.1,0.55]
[1754051467252,1.63929004,3670.4,3669.2,1.24532542]
[1754051467452,1.63929004,3670.4,3669.3,0.24992542]
[1754051467753,0.55,3669.6,3669.1,5.00808104]
[1754051467953,0.55,3669.4,3669.2,0.2496514]
[1754051468152,0.5177,3669.3,3669.1,5.00808104]
[1754051468354,0.55,3669.1,3667.0,0.819016]
[1754051468555,0.55,3668.6,3664.6,0.4565]
[1754051468716,3.55,3668.4,3665.1,0.5589]
[1754051468919,0.57745442,3668.3,3665.1,0.5589]
[1754051469238,0.55,3668.1,3667.1,0.02]
[1754051469438,0.02745442,3668.0,3667.1,0.02]
[1754051469641,0.55,3667.6,3667.1,0.02]
[1754051469841,3.0,3668.0,3667.1,0.02]
[1754051470042,6.553,3669.5,3667.1,0.02]
[1754051470241,0.4709,3668.9,3668.4,0.136]
[1754051470441,0.4732,3668.8,3668.4,0.136]
[1754051470760,3.55,3668.4,3667.1,0.02]
[1754051470918,6.553,3669.5,3667.1,0.02]
[1754051470919,0.55,3668.2,3667.1,0.02]
[1754051471313,0.4732,3669.0,3667.2,3.02726876]
[1754051471554,6.553,3669.5,3667.7,2.72650434]
[1754051471729,1.63929004,3670.4,3667.9,2.72635568]
[1754051471918,1.63929004,3670.4,3668.2,3.0]
[1754051472115,1.63929004,3670.4,3668.1,2.72620702]
[1754051472116,1.63929004,3670.4,3669.7,5.72501839]
[1754051472429,1.63929004,3670.4,3669.7,6.72041839]
[1754051472629,1.63929004,3670.4,3669.7,2.72501839]
[1754051472947,1.63929004,3670.4,3669.5,2.72513647]
[1754051473261,1.63929004,3670.4,3669.2,0.5389]
[1754051473419,0.4709,3670.2,3668.2,3.0]
[1754051473625,1.63929004,3670.4,3669.7,2.72501839]
[1754051473932,1.63929004,3670.4,3669.7,3.26391839]
[1754051474140,1.63929004,3670.4,3669.7,0.5389]
[1754051474628,1.63929004,3670.4,3669.7,3.26391839]
[1754051474822,1.63929004,3670.4,3669.7,6.26391839]
[1754051475025,1.63929004,3670.4,3669.1,0.5389]
[1754051475539,1.63929004,3670.4,3669.7,2.72501839]
[1754051475742,1e-08,3669.9,3669.8,5.72494413]
[1754051476040,1e-08,3669.9,3669.8,6.72034413]
[1754051477580,1e-08,3669.9,3669.8,6.69284413]
[1754051477789,0.004,3670.5,3670.4,5.72449869]
[1754051478083,0.02,3670.9,3670.8,5.7242018]
[1754051478231,0.02,3671.9,3671.8,2.72345988]
[1754051478425,0.02,3671.9,3671.6,2.72355699]
[1754051478629,0.02,3671.9,3671.2,2.72389356]
[1754051478630,0.02,3671.9,3671.7,0.6186]
[1754051478859,0.02,3671.9,3667.5,0.20170078]
[1754051478860,0.02,3671.9,3670.9,2.72412342]
[1754051479078,0.02,3671.9,3671.1,3.0]
[1754051479235,0.02,3671.9,3671.8,5.72345988]
[1754051479639,0.02,3672.9,3672.8,2.72271836]
[1754051479956,0.02,3672.9,3672.8,5.72271836]
[1754051480164,0.02,3672.9,3672.0,0.6186]
[1754051480343,0.02,3672.9,3671.4,3.6186]
[1754051480543,0.4577,3672.8,3671.4,0.6186]
[1754051480743,0.16575442,3672.7,3672.2,0.136]
[1754051480931,3.0,3672.4,3669.5,0.6186]
[1754051481134,0.02975442,3672.3,3669.5,0.6186]
[1754051481379,2.72405339,3671.0,3670.9,3.48851136]
[1754051481541,0.0023,3671.0,3670.5,0.136]
[1754051481749,0.0023,3670.9,3669.2,0.2495791]
[1754051481982,0.02975442,3670.9,3670.1,0.02]
[1754051482283,0.0023,3670.9,3670.1,0.02]
[1754051482491,0.136,3670.7,3670.1,0.156]
[1754051482786,5.767,3671.7,3670.1,0.02]
[1754051482787,5.72464715,3670.2,3670.1,0.02]
[1754051482998,3.0,3670.2,3670.1,0.02]
[1754051483309,3.6883,3670.2,3670.1,0.02]
[1754051483469,6.44040157,3670.2,3670.1,0.02]
[1754051483672,3.6883,3670.2,3670.1,0.02]
[1754051483889,3.41064715,3670.2,3670.1,0.02]
[1754051484053,3.44040157,3670.2,3670.1,0.02]
[1754051484361,0.6883,3670.2,3670.1,0.2695791]
[1754051484560,0.686,3670.2,3670.1,0.2695791]
[1754051484777,0.55,3670.1,3669.4,0.2495791]
[1754051485093,6.27524118,3669.4,3669.3,0.1337]
[1754051485291,6.27538973,3669.2,3669.1,0.02]
[1754051485590,6.41138973,3669.2,3669.1,0.27140151]
[1754051485803,0.55,3668.2,3667.1,0.02]
[1754051486094,0.136,3668.2,3667.1,0.02]
[1754051486299,0.136,3668.2,3667.2,0.136]
[1754051486593,0.136,3668.2,3667.1,0.156]
[1754051486750,5.7851,3669.4,3667.6,1.0476]
[1754051486948,5.756,3669.4,3668.0,0.6186]
[1754051487148,0.0291,3669.9,3668.0,0.6186]
[1754051487149,3.0,3669.6,3668.0,0.6186]
[1754051487347,12.302,3670.5,3668.3,2.72605839]
[1754051487572,12.302,3670.5,3668.4,1.0476]
[1754051487789,0.0291,3671.6,3668.5,1.07485909]
[1754051487978,2.72359596,3671.7,3668.5,0.02725909]
[1754051488180,0.02,3670.9,3668.6,4.0476]
[1754051488474,0.02,3670.9,3669.7,2.72497632]
[1754051488695,0.02,3670.9,3668.8,3.0]
[1754051488696,0.02,3670.9,3669.8,1.0476]
[1754051489192,0.02,3670.9,3669.9,1.0476]
[1754051489353,0.02,3670.9,3670.0,2.72479564]
[1754051489554,0.02,3670.9,3669.9,1.0476]
[1754051489891,0.55,3670.7,3668.7,0.6186]
[1754051490188,0.25248551,3670.6,3668.8,1.0476]
[1754051490388,0.27993993,3670.5,3668.9,0.6186]
[1754051490573,0.55,3670.3,3668.9,0.6186]
[1754051490896,0.25248551,3670.2,3669.0,0.429]
[1754051491049,3.55,3670.8,3669.0,0.429]
[1754051491050,0.55,3670.6,3669.0,0.429]
[1754051491246,0.55,3670.6,3668.2,5.7261228]
[1754051491247,0.55,3670.4,3668.3,2.72605552]
[1754051491447,0.55,3669.9,3668.2,1.0476]
[1754051491789,0.02745442,3669.8,3668.2,1.0476]
[1754051491953,0.0291,3669.9,3668.3,0.02726058]
[1754051492155,6.548,3670.2,3668.2,0.429]
[1754051492366,6.548,3670.2,3668.7,2.72568877]
[1754051492566,6.548,3670.2,3669.2,2.72532871]
[1754051492770,6.548,3670.2,3669.3,1.0476]
[1754051493089,0.02745442,3670.1,3668.7,0.6186]
[1754051493254,6.548,3670.2,3668.7,0.6186]
[1754051493454,3.33129043,3670.1,3668.1,0.6386]
[1754051493756,6.548,3670.2,3668.1,0.6386]
[1754051493951,0.55,3670.1,3668.2,0.429]
[1754051494156,0.02745442,3670.0,3668.3,0.6186]
[1754051494403,0.55,3669.5,3668.1,0.02]
[1754051494567,0.55,3669.3,3668.1,0.02]
[1754051494908,0.02745442,3669.2,3668.1,0.02]
[1754051495111,6.262,3669.3,3668.1,0.02]
[1754051495388,0.55,3668.8,3668.1,0.02]
[1754051495692,0.02745442,3668.7,3668.1,0.02]
[1754051496062,0.02745442,3669.0,3668.1,0.02]
[1754051496385,0.55,3668.6,3668.1,0.02]
[1754051496587,0.55,3668.4,3668.1,0.02]
[1754051496900,2.72612788,3668.3,3668.1,0.02]
[1754051497099,0.71345442,3668.2,3668.1,0.02]
[1754051497306,0.686,3668.2,3668.1,0.02]
[1754051497512,3.4412327,3668.2,3668.1,0.02]
[1754051497664,9.1242327,3668.2,3668.1,0.02]
[1754051498111,6.3981,3668.2,3668.1,0.02]
[1754051498265,9.1242327,3668.2,3668.1,0.02]
[1754051498908,12.1242327,3668.2,3668.1,0.02]
[1754051499917,11.5742327,3668.2,3668.1,0.02]
[1754051500214,2.72687609,3667.2,3667.1,0.02]
[1754051500418,8.52387609,3667.2,3667.1,0.02]
[1754051500613,8.52387609,3667.2,3666.1,0.02]
[1754051500614,5.8261,3667.2,3666.1,0.02]
[1754051500913,2.72739669,3666.5,3666.1,0.02]
[1754051501093,42.44185111,3666.5,3666.4,1e-08]
[1754051501275,42.44349669,3666.5,3666.4,1e-08]
[1754051501667,35.72761987,3666.2,3666.1,0.02]
[1754051501868,42.07061987,3666.2,3666.1,0.02]
[1754051502167,12.09971987,3666.2,3666.1,0.02]
[1754051502514,42.09971987,3666.2,3666.1,0.02]
[1754051502684,3.27836407,3665.2,3665.1,0.02]
[1754051502883,11.95781849,3665.2,3665.1,0.02]
[1754051503082,12.06716407,3665.2,3665.1,0.02]
[1754051503310,12.09626407,3665.2,3665.1,0.02]
[1754051504066,3.27910867,3664.2,3664.1,0.02]
[1754051504272,0.55,3663.4,3661.9,0.1368]
[1754051504495,0.6868,3663.2,3662.0,0.6186]
[1754051504698,6.3298,3663.2,3661.6,0.429]
[1754051504897,9.08875367,3663.2,3661.6,0.429]
[1754051505412,6.3298,3663.2,3661.8,0.6186]
[1754051506016,12.08875367,3663.2,3661.1,0.6386]
[1754051506238,0.55,3663.2,3661.1,0.6386]
[1754051506536,0.55,3663.2,3662.1,0.449]
[1754051506537,5.7668,3663.2,3662.1,0.449]
[1754051506675,5.7658,3663.2,3662.7,0.4294]
[1754051506871,0.1368,3663.2,3663.1,1.0889]
[1754051507174,0.1368,3663.3,3663.1,0.02]
[1754051507370,5.627,3663.2,3663.1,0.02]
[1754051507571,0.1368,3663.2,3663.1,0.02]
[1754051507891,0.17,3664.7,3663.2,2.72985367]
[1754051508238,0.17,3664.6,3663.3,1.0689]
[1754051508416,0.19745442,3664.6,3663.3,1.0689]
[1754051508573,0.55,3664.3,3663.1,0.1568]
[1754051508778,0.55,3663.2,3663.1,0.02]
[1754051509013,6.3098,3663.2,3663.1,0.02]
[1754051509390,0.1368,3663.2,3663.1,1.0889]
[1754051509579,5.62,3663.8,3663.1,3.81879307]
[1754051509777,0.1368,3663.2,3663.1,1.0889]
[1754051509999,5.62,3663.8,3663.1,1.0889]
[1754051510203,0.1368,3663.5,3663.1,1.0889]
[1754051510401,0.1368,3663.5,3663.2,1.0689]
[1754051510582,5.62,3663.8,3663.2,1.0689]
[1754051510777,0.1368,3663.3,3663.2,1.0689]
[1754051511112,0.1368,3663.3,3663.2,0.4294]
[1754051511312,0.14269219,3665.4,3663.3,0.6395]
[1754051511497,0.1368,3663.9,3663.3,0.6395]
[1754051511699,0.02745442,3665.3,3663.3,0.6395]
[1754051511700,4.622,3664.2,3663.6,0.1368]
[1754051511900,0.1368,3663.6,3663.4,0.4294]
[1754051512106,0.1368,3663.6,3663.5,1.0689]
[1754051512417,0.1368,3663.9,3663.5,1.0689]
[1754051512617,0.02745442,3664.1,3663.5,1.0689]
[1754051512817,0.1368,3663.6,3663.5,0.4294]
[1754051513190,0.1368,3663.6,3663.3,3.25918238]
[1754051513386,0.02745442,3664.1,3663.3,3.25918238]
[1754051513387,0.1368,3663.4,3663.3,3.25918238]
[1754051513591,6.2838,3663.4,3663.3,3.25918238]
[1754051513787,6.2838,3663.4,3663.3,0.25462363]
[1754051514010,0.1368,3663.4,3663.3,0.25462363]
[1754051514218,5.7288,3663.4,3663.3,0.25462363]
[1754051514498,0.1368,3663.4,3663.3,1.32352363]
[1754051514722,5.7288,3663.4,3663.3,1.32352363]
[1754051514920,5.592,3663.4,3663.3,1.32352363]
[1754051515696,5.592,3663.4,3663.3,0.25462363]
[1754051515923,0.1368,3663.4,3662.3,0.1368]
[1754051516126,0.55,3663.2,3662.3,0.6395]
[1754051516326,0.55,3663.2,3662.1,0.02]
[1754051516327,2.72985419,3663.2,3662.1,0.02]
[1754051516526,5.585,3663.3,3662.1,0.02]
[1754051516831,0.57745442,3663.2,3662.1,0.02]
[1754051517030,0.55,3663.2,3662.1,0.02]
[1754051517226,5.591,3663.1,3662.1,0.02]
[1754051517439,6.558,3663.6,3662.2,1.0689]
[1754051517609,5.586,3663.5,3662.7,2.73019206]